[Event "1000GM Summer-II Dual Schev-A 2024"]
[Site "San Jose"]
[Date "2024.07.04"]
[Round "5.5"]
[White "Sanchez, Sebastian Felipe"]
[Black "Ganesan, Vikrant"]
[Result "1-0"]
[ECO "E22"]
[WhiteElo "2400"]
[BlackElo "2038"]
[Annotator "TA"]
[PlyCount "32"]
[EventDate "2024.06.29"]
[EventType "schev"]
[EventCountry "USA"]
[SourceTitle "playchess.com"]
[Source "ChessBase"]
[SourceQuality "1"]
[TimeControl "5400+30"]

{[%evp 9,32,21,47,23,60,71,56,52,116,114,117,116,375,368,382,375,424,411,442,444,495,502,552,531,539]} 1. d4 {[%emt 0:00:03]} Nf6 {[%emt 0:03:12]} 2. c4 {[%emt 0:00:18]} e6 {[%emt 0:00:06]} 3. Nf3 {[%emt 0:00:11]} d5 {[%emt 0:00:17]} 4. Nc3 {[%emt 0:00:07]} Bb4 {[%emt 0:00:36]} 5. Qb3 {[%emt 0:00:08]} Nc6 {[%emt 0:00:54]} 6. a3 {[%emt 0:01:20]} Bd6 {[%emt 0:01:11]} 7. cxd5 {[%emt 0:03:38]} exd5 {[%emt 0:00:11]} 8. Bg5 {[%emt 0:00:18] White is slightly better.} (8. Nxd5 $2 Nxd5 9. e4 (9. Qxd5 $2 {is the wrong capture.} Bb4+ 10. axb4 Qxd5 $19) 9... Nb6 $19) 8... Be7 {[%emt 0:06:58]} (8... Ne7 $14) 9. Bxf6 $16 {[%emt 0:03:58]} Bxf6 {[%emt 0:01:56]} 10. Qxd5 {[%emt 0:00:15]} Nxd4 $2 {[%emt 0:05:33][%mdl 8192] [#]} (10... Be6 $16 {might work better.} 11. Qxd8+ Nxd8) 11. Qxd8+ $18 {[%emt 0:01:22]} (11. Nxd4 Qxd5 (11... Bxd4 $2 {too greedy.} 12. Qxd8+ Kxd8 13. O-O-O $18) 12. Nxd5 Bxd4 13. Nxc7+ Ke7 14. Nxa8 Bxb2 $14) 11... Kxd8 {[%emt 0:01:16]} 12. Nxd4 {[%emt 0:00:27]} Bxd4 {[%emt 0:00:12]} 13. O-O-O {[%emt 0:00:20]} c5 {[%emt 0:02:14]} 14. e3 {[%emt 0:00:06] White is clearly winning.} Bd7 {[%emt 0:00:36]} 15. exd4 {[%emt 0:00:12]} cxd4 {[%emt 0:01:05]} 16. Rxd4 {[%emt 0:00:06] [#] Hoping for Bb5.} Ke7 {[%emt 0:01:11] White took control after the opening.   Weighted Error Value: White=0.03 (flawless) /Black=0.76.  Loses game:     	---       	Black=1      Mistake:       	---       	Black=1      Inaccurate:     	---       	Black=1      OK:         	White=8     	---        Best:        	White=1     	---} 1-0